fUST/lending_fUST_20240830
["ID","MTS","AMOUNT","RATE_DAILY","PERIOD"]
[336592776,1724960156347,-796.52,0.00025205,5]
[336592777,1724960156404,-538.75,0.00025205,5]
[336592778,1724960156461,-3096.95,0.00025205,5]
[336592779,1724960156520,-553.79,0.00025205,5]
[336592780,1724960156574,-581.17,0.00025205,5]
[336592781,1724960156632,-820.89,0.00025205,5]
[336592782,1724960156694,-993.03,0.00025205,5]
[336592783,1724960156750,-1915.49,0.00025205,5]
[336592784,1724960156809,-1175.32,0.00025205,5]
[336592785,1724960156866,-534.62,0.00025205,5]
[336592786,1724960156923,-810.15708633,0.00025479,5]
[336592787,1724960156982,-1046.62,0.00025479,5]
[336592788,1724960157039,-2022.944138,0.00025479,7]
[336592789,1724960157097,-2022.944138,0.00025479,7]
[336592790,1724960157152,-235.67,0.00025479,5]
[336592791,1724960157208,-725.85,0.00025479,5]
[336592792,1724960157264,-672.28,0.00025479,5]
[336592793,1724960157326,-1075.56,0.00025479,5]
[336592794,1724960157384,-884.11,0.00025479,5]
[336592795,1724960157442,-559.8,0.00025479,5]
[336592796,1724960157500,-551.28,0.00025479,5]
[336592797,1724960157558,-796.59,0.00025479,5]
[336592798,1724960157621,-538.84,0.00025479,5]
[336592799,1724960157679,-3097.0236198,0.00025479,5]
[336592800,1724960157736,-553.88,0.00025479,5]
[336592801,1724960157795,-821.05,0.00025479,5]
[336592802,1724960157858,-993.09,0.00025479,5]
[336592803,1724960157920,-1915.63,0.00025479,5]
[336592804,1724960157984,-1175.4,0.00025479,5]
[336592805,1724960158047,-534.73,0.00025479,5]
[336592806,1724960158110,-44694.07,0.000262,14]
[336592807,1724960158168,-2022.944138,0.00027,7]
[336592808,1724960158230,-2022.944138,0.00027,7]
[336592809,1724960158295,-930.47,0.000293,7]
[336592810,1724960158354,-1662.67624368,0.0002985,20]
[336592811,1724960158414,-1076.11250487,0.0003,7]
[336592812,1724960158474,-63000.0,0.0003,15]
[336592813,1724960158535,-7841.44719797,0.0003,10]
[336592814,1724960158595,-1008.37537325,0.0003,7]
[336592815,1724960158657,-712.73067428,0.0003,15]
[336592816,1724960158718,-2022.944138,0.0003,7]
[336592817,1724960158781,-2022.944138,0.0003,7]
[336592818,1724960158840,-300.67949795,0.00030006,7]
[336592819,1724960158900,-3000.0,0.00030051,10]
[336592820,1724960158959,-3372.9635685,0.0003008,18]
[336592821,1724960159253,-1813.82862947,0.00030148,22]
[336592822,1724960159314,-300.67949795,0.00030312,7]
[336592823,1724960159375,-3000.0,0.00030356,10]
[336592824,1724960159434,-1813.82862947,0.00030447,22]
[336592825,1724960159497,-930.47,0.000305,7]
[336592826,1724960159556,-168.74,0.00030618,7]
[336592827,1724960159616,-301.17,0.00030618,7]
[336592828,1724960159679,-3000.0,0.00030661,10]
[336592829,1724960159741,-1813.82862947,0.00030745,22]
[336592830,1724960159802,-2639.61,0.000309,14]
[336592831,1724960159863,-1020.26,0.000309,14]
[336592832,1724960159926,-3000.0,0.00030966,10]
[336592833,1724960159991,-1964.98101526,0.00031044,24]
[336592834,1724960160065,-2022.944138,0.00031202,7]
[336592835,1724960160133,-2022.944138,0.00031202,7]
[336592836,1724960160204,-2022.944138,0.00031202,7]
[336592837,1724960160273,-2022.944138,0.00031202,7]
[336592838,1724960160351,-2022.944138,0.00031202,7]
[336592839,1724960160420,-2022.944138,0.00031202,7]
[336592840,1724960160491,-3000.0,0.00031271,10]
[336592841,1724960160557,-44694.07,0.000313,14]
[336592842,1724960160631,-1964.98101526,0.00031342,24]
[336592843,1724960160697,-3000.0,0.00031576,10]
[336592844,1724960160764,-1964.98101526,0.00031641,24]
[336592845,1724960160828,-3000.0,0.00031881,10]
[336592846,1724960160891,-930.47,0.000319,7]
[336592847,1724960160954,-722.80096126,0.00031939,24]
[336592848,1724960161016,-8791.83523261,0.00032,7]
[336592849,1724960161078,-10000.0,0.00032,7]
[336592850,1724960161138,-10000.0,0.00032,7]
[336592851,1724960161198,-10000.0,0.00032,7]
[336592852,1724960161258,-10000.0,0.00032,7]
[336592853,1724960161318,-10000.0,0.00032,7]
[336592854,1724960161379,-6071.71099942,0.00032,7]
[336592855,1724960161691,-191164.35326843,0.00031081,5]
[336592856,1724960161754,-512.67377265,0.00031081,14]
[336592857,1724960161816,-229.27604214,0.00031081,10]
[336592858,1724960161875,-200.0,0.00031081,10]
[336592859,1724960161938,-150.0,0.00031081,14]
[336592860,1724960162001,-150.0,0.00031081,14]
[336592861,1724960162063,-200.0,0.00031081,14]
[336592862,1724960162128,-100158.79388346,0.00031081,7]
[336592863,1724960162191,-1041.99115995,0.00031081,10]
[336592864,1724960162253,-86449.77478338,0.00031081,7]
[336592865,1724960162317,-2940.44390706,0.00031081,7]
[336592866,1724960162384,-15600.65846133,0.00031081,14]
[336592867,1724960162448,-205.72476547,0.00031081,7]
[336592868,1724960162511,-199.60214422,0.00031081,10]
[336592869,1724960162577,-101556.76975515,0.00031081,7]
[336592870,1724960162647,-99239.93805676,0.00031081,7]
[336592871,1724960169685,-1000.40183365,0.00031081,7]
[336592872,1724960169747,-163.11512616,0.00031081,120]
[336592873,1724960169815,-1000.0,0.00031081,120]
[336592874,1724960169881,-1000.0,0.00031081,120]
[336592875,1724960169947,-329.799999,0.00031081,120]
[336592876,1724960170010,-200.0,0.00031081,30]
[336592877,1724960170073,-300.0,0.00031081,30]
[336592878,1724960170139,-194.19867171,0.00031081,120]
[336592879,1724960170206,-39054.79081624,0.00031081,7]
[336592880,1724960170271,-221.54806213,0.00031081,120]
[336592881,1724960170339,-806.56684112,0.00031081,30]
[336592882,1724960170400,-349.33094263,0.00031081,120]
[336592883,1724960170464,-389.17775496,0.00031081,120]
[336592884,1724960170526,-581.44392938,0.00031081,60]
[336592885,1724960170591,-614.67399695,0.00031081,120]
[336592886,1724960170658,-1186.99891928,0.00031081,30]
[336592887,1724960170891,-10001.8483507,0.00031081,7]
[336592888,1724960170955,-1766.65,0.00031081,120]
[336592889,1724960171022,-233.85380103,0.00031081,120]
[336592890,1724960171082,-172.61261396,0.00031081,30]
[336592891,1724960171145,-240.82074905,0.00031081,120]
[336592892,1724960171207,-285.78512698,0.00031081,120]
[336592893,1724960171273,-412.546519,0.00031081,30]
[336592894,1724960171339,-176.27456995,0.00031081,120]
[336592895,1724960171401,-231.74645971,0.00031081,30]
[336592896,1724960171465,-624.21970349,0.00031081,120]
[336592897,1724960171529,-511.11299483,0.00031081,30]
[336592898,1724960171593,-1054.24527443,0.00031081,120]
[336592899,1724960171655,-573.58592103,0.00031081,120]
[336592900,1724960171720,-364.15274889,0.00031081,30]
[336592901,1724960171786,-491.14149247,0.00031081,120]
[336592902,1724960171849,-150.0,0.00031081,30]
[336592903,1724960171911,-165.812621,0.00031081,30]
[336592904,1724960171978,-150.0,0.00031081,30]
[336592905,1724960172045,-150.0,0.00031081,30]
[336592906,1724960172106,-150.0,0.00031081,30]
[336592907,1724960172168,-150.0,0.00031081,30]
[336592908,1724960172229,-150.0,0.00031081,30]
[336592909,1724960172296,-250.0,0.00031081,30]
[336592910,1724960173464,250.0,0.00031081,30]
[336592911,1724960173845,250.0,0.00031081,30]
[336592912,1724960174526,250.0,0.00031081,30]
[336592913,1724960174890,250.0,0.00031081,30]
[336592914,1724960175198,250.0,0.00031081,30]
[336592915,1724960175546,250.0,0.00031081,30]
[336592916,1724960175870,250.0,0.00031081,30]
[336592917,1724960176268,250.0,0.00031081,30]
[336592918,1724960176637,250.0,0.00031081,30]
[336592919,1724960177269,250.0,0.00031081,30]
[336592920,1724960177613,250.0,0.00031081,30]
[336592921,1724960177951,250.0,0.00031081,30]
[336592924,1724960340123,-178.18888889,0.0003,120]
[336592925,1724960340437,-175.0,0.00030986,120]
[336592926,1724960343910,-3.18888889,0.00030986,120]
[336592929,1724960373299,151.0,0.0003,120]
[336592930,1724960373894,20.81111111,0.00031315,120]
[336592933,1724960619074,178.18888889,0.0003,120]
[336592934,1724960619096,178.18888889,0.0003,120]
[336592935,1724960619119,178.18888889,0.0003,120]
[336592936,1724960626783,468.728268,0.00014247,2]
[336592950,1724961032401,-231.9454068,0.00017923,2]
[336592951,1724961032414,-206.48418321,0.00017971,2]
[336592953,1724961032432,-93.51581679,0.00017971,2]
[336592954,1724961032443,-889.32418636,0.00017972,2]
[336592956,1724961032455,-364.04173256,0.00017972,2]
[336592994,1724961038724,-1855.57374104,0.00017972,2]
[336592995,1724961038837,-21791.06034004,0.00017972,2]
[336592996,1724961038847,-846.0420623,0.00018774,2]
[336592997,1724961038859,-344.864233,0.00018912,2]
[336592998,1724961038869,-292.757431,0.00018912,2]
[336592999,1724961038879,-206.032978,0.00018912,2]
[336593000,1724961038889,-223.809347,0.00018912,2]
[336593001,1724961038898,-201.584112,0.00018912,2]
[336593002,1724961038909,-193.803186,0.00018912,2]
[336593003,1724961038926,-543.01490397,0.00019,2]
[336593004,1724961038935,-46480.86,0.00019,3]
[336593005,1724961038946,-185.21,0.00019068,3]
[336593006,1724961038956,-555.67,0.00019068,3]
[336593007,1724961038967,-15546.8260485,0.00019068,2]
[336593008,1724961038977,-1211.7373187,0.00019073,2]
[336593009,1724961038987,-1211.73731866,0.00019074,2]
[336593010,1724961038998,-1211.73731866,0.00019076,2]
[336593011,1724961039007,-1211.73731866,0.00019077,2]
[336593012,1724961039017,-1211.73731866,0.00019078,2]
[336593013,1724961039028,-2223.09589004,0.00019078,2]
[336593014,1724961039038,-48928.38094375,0.00019078,2]
[336593015,1724961039048,-344.864233,0.00019148,2]
[336593016,1724961039058,-292.757431,0.00019148,2]
[336593017,1724961039069,-206.032978,0.00019148,2]
[336593018,1724961039080,-223.809347,0.00019148,2]
[336593019,1724961039091,-500.0,0.00019167,2]
[336593020,1724961039101,-188.824042,0.00019167,2]
[336593021,1724961039111,-598.52235676,0.00019167,2]
[336593022,1724961039120,-500.0,0.00019167,2]
[336593023,1724961039129,-108827.782339,0.00019168,2]
[336593024,1724961039138,-240.64886019,0.00019173,2]
[336593025,1724961039148,-417.87872101,0.00019173,2]
[336593026,1724961039158,-500.0,0.00019178,2]
[336593027,1724961039170,-502.26947299,0.00019178,2]
[336593028,1724961039179,-503.14662438,0.00019178,2]
[336593029,1724961039188,-500.0,0.00019178,2]
[336593030,1724961039197,-514.78518479,0.00019178,2]
[336593031,1724961039206,-500.0,0.00019178,2]
[336593032,1724961039216,-500.0,0.00019178,2]
[336593033,1724961039225,-500.0,0.00019178,2]
[336593034,1724961039236,-500.0,0.00019178,2]
[336593035,1724961039245,-500.0,0.00019178,2]
[336593036,1724961039254,-500.0,0.00019178,2]
[336593037,1724961039264,-500.0,0.00019178,2]
[336593038,1724961039273,-500.0,0.00019178,2]
[336593039,1724961039284,-500.0,0.00019178,2]
[336593040,1724961039294,-500.0,0.00019178,2]
[336593041,1724961039303,-500.0,0.00019178,2]
[336593042,1724961039313,-501.0299058,0.00019178,2]
[336593043,1724961039322,-500.4735399,0.00019178,2]
[336593044,1724961039331,-501.2056711,0.00019178,2]
[336593045,1724961039341,-500.0,0.00019178,2]
[336593046,1724961039350,-537.21072489,0.00019178,2]
[336593047,1724961039360,-500.0,0.00019178,2]
[336593048,1724961039370,-501.2264326,0.00019178,2]
[336593049,1724961039380,-397.55711037,0.00019178,2]
[336593050,1724961039389,-206.58969541,0.00019178,2]
[336593051,1724961039399,-500.0,0.00019178,2]
[336593052,1724961039410,-500.0,0.00019178,2]
[336593053,1724961039421,-500.0,0.00019178,2]
[336593054,1724961039430,-500.0,0.00019178,2]
[336593055,1724961039441,-500.0,0.00019178,2]
[336593056,1724961039450,-626.1991081,0.00019178,2]
[336593057,1724961039460,-619.94317622,0.00019178,2]
[336593058,1724961039469,-500.0,0.00019178,2]
[336593059,1724961039479,-500.0,0.00019178,2]
[336593060,1724961039490,-500.0,0.00019178,2]
[336593061,1724961039499,-500.0,0.00019178,2]
[336593062,1724961039509,-500.0,0.00019178,2]
[336593063,1724961039519,-500.0,0.00019178,2]
[336593064,1724961039529,-500.0,0.00019178,2]
[336593065,1724961039538,-500.0,0.00019178,2]
[336593066,1724961039548,-502.0915727,0.00019178,2]
[336593067,1724961039557,-500.0,0.00019178,2]
[336593068,1724961039568,-501.49547006,0.00019178,2]
[336593069,1724961039578,-500.0,0.00019178,2]
[336593070,1724961039587,-500.0,0.00019178,2]
[336593071,1724961039599,-502.32337793,0.00019178,2]
[336593072,1724961039608,-500.0,0.00019178,2]
[336593073,1724961039618,-500.0,0.00019178,2]
[336593074,1724961039627,-500.0,0.00019178,2]
[336593075,1724961039637,-500.0,0.00019178,2]
[336593076,1724961039649,-500.0,0.00019178,2]
[336593077,1724961039659,-500.0,0.00019178,2]
[336593078,1724961039672,-503.02106034,0.00019178,2]
[336593079,1724961039682,-501.58444711,0.00019178,2]
[336593080,1724961039692,-500.0,0.00019178,2]
[336593081,1724961039702,-500.0,0.00019178,2]
[336593082,1724961039712,-500.0,0.00019178,2]
[336593083,1724961039721,-500.0,0.00019178,2]
[336593084,1724961039731,-500.0,0.00019178,2]
[336593085,1724961039741,-500.0,0.00019178,2]
[336593086,1724961039752,-500.0,0.00019178,2]
[336593087,1724961039762,-500.0,0.00019178,2]
[336593088,1724961039772,-500.0,0.00019178,2]
[336593089,1724961039783,-501.41878933,0.00019178,2]
[336593090,1724961039793,-500.0,0.00019178,2]
[336593091,1724961039803,-500.0,0.00019178,2]
[336593092,1724961039812,-500.0,0.00019178,2]
[336593093,1724961039822,-500.0,0.00019178,2]
[336593094,1724961039833,-500.0,0.00019178,2]
[336593095,1724961039845,-501.22880114,0.00019178,2]
[336593096,1724961039854,-500.0,0.00019178,2]
[336593097,1724961039866,-500.0,0.00019178,2]
[336593098,1724961039877,-500.0,0.00019178,2]
[336593099,1724961039887,-500.0,0.00019178,2]
[336593100,1724961039898,-500.0,0.00019178,2]
[336593101,1724961039908,-500.0,0.00019178,2]
[336593102,1724961039920,-500.0,0.00019178,2]
[336593103,1724961039930,-500.0,0.00019178,2]
[336593104,1724961039940,-500.22,0.00019178,2]
[336593105,1724961039949,-500.0,0.00019178,2]
[336593106,1724961039961,-500.0,0.00019178,2]
[336593107,1724961039972,-500.0,0.00019178,2]
[336593108,1724961039984,-500.0,0.00019178,2]
[336593109,1724961039996,-500.0,0.00019178,2]
[336593110,1724961040005,-507.48470901,0.00019178,2]
[336593111,1724961040016,-500.0,0.00019178,2]
[336593112,1724961040025,-500.0,0.00019178,2]
[336593113,1724961040037,-500.0,0.00019178,2]
[336593114,1724961040048,-500.0,0.00019178,2]
[336593115,1724961040058,-500.0,0.00019178,2]
[336593116,1724961040068,-500.0,0.00019178,2]
[336593117,1724961040078,-1150.56,0.00019178,2]
[336593118,1724961040088,-503.11875468,0.00019178,2]
[336593119,1724961040099,-500.0,0.00019178,2]
[336593120,1724961040109,-500.0,0.00019178,2]
[336593122,1724961040119,-500.0,0.00019178,2]
[336593124,1724961040128,-500.0,0.00019178,2]
[336593125,1724961040139,-500.0,0.00019178,2]
[336593127,1724961040149,-500.0,0.00019178,2]
[336593128,1724961040159,-500.0,0.00019178,2]
[336593129,1724961040172,-500.0,0.00019178,2]
[336593131,1724961040183,-500.0,0.00019178,2]
[336593132,1724961040193,-500.0,0.00019178,2]
[336593134,1724961040203,-502.12198801,0.00019178,2]
[336593136,1724961040212,-421.34183977,0.00019178,2]
[336593137,1724961040222,-507.34958046,0.00019178,2]
[336593139,1724961040233,-500.0,0.00019178,2]
[336593141,1724961040243,-500.0,0.00019178,2]
[336593142,1724961040253,-500.0,0.00019178,2]
[336593144,1724961040263,-500.0,0.00019178,2]
[336593145,1724961040273,-500.0,0.00019178,2]
[336593147,1724961040283,-559.61210132,0.00019178,2]
[336593149,1724961040293,-500.0,0.00019178,2]
[336593150,1724961040304,-500.0,0.00019178,2]
[336593152,1724961040314,-500.0,0.00019178,2]
[336593154,1724961040323,-500.0,0.00019178,2]
[336593155,1724961040334,-500.0,0.00019178,2]
[336593157,1724961040344,-500.0,0.00019178,2]
[336593159,1724961040355,-500.0,0.00019178,2]
[336593160,1724961040365,-500.0,0.00019178,2]
[336593162,1724961040376,-500.0,0.00019178,2]
[336593164,1724961040387,-500.0,0.00019178,2]
[336593177,1724961040400,-500.0,0.00019178,2]
[336593179,1724961040598,-500.0,0.00019178,2]
[336593181,1724961040612,-500.0,0.00019178,2]
[336593182,1724961040622,-500.0,0.00019178,2]
[336593184,1724961040632,-500.0,0.00019178,2]
[336593186,1724961040644,-500.0,0.00019178,2]
[336593187,1724961040654,-500.0,0.00019178,2]
[336593189,1724961040665,-500.0,0.00019178,2]
[336593191,1724961040681,-500.0,0.00019178,2]
[336593192,1724961040690,-500.0,0.00019178,2]
[336593194,1724961040700,-500.0,0.00019178,2]
[336593196,1724961040710,-500.0,0.00019178,2]
[336593197,1724961040720,-645.75569571,0.00019178,2]
[336593199,1724961040730,-500.0,0.00019178,2]
[336593200,1724961040740,-909.37,0.00019178,2]
[336593202,1724961040750,-500.0,0.00019178,2]
[336593204,1724961040760,-500.0,0.00019178,2]
[336593205,1724961040770,-500.0,0.00019178,2]
[336593206,1724961040780,-500.0,0.00019178,2]
[336593207,1724961040789,-500.0,0.00019178,2]
[336593208,1724961040799,-500.0,0.00019178,2]
[336593209,1724961040808,-500.0,0.00019178,2]
[336593210,1724961040818,-500.0,0.00019178,2]
[336593211,1724961040828,-500.0,0.00019178,2]
[336593212,1724961040837,-500.0,0.00019178,2]
[336593213,1724961040847,-500.0,0.00019178,2]
[336593214,1724961040857,-500.0,0.00019178,2]
[336593215,1724961040867,-500.0,0.00019178,2]
[336593216,1724961040877,-311.31275787,0.00019178,2]
[336593217,1724961040887,-524.07508133,0.00019178,2]
[336593218,1724961040897,-500.0,0.00019178,2]
[336593219,1724961040907,-838.78,0.00019178,2]
[336593220,1724961040921,-500.0,0.00019178,2]
[336593221,1724961040930,-500.0,0.00019178,2]
[336593222,1724961040939,-500.0,0.00019178,2]
[336593223,1724961040948,-500.0,0.00019178,2]
[336593224,1724961040957,-500.0,0.00019178,2]
[336593225,1724961040967,-500.0,0.00019178,2]
[336593226,1724961040976,-500.0,0.00019178,2]
[336593227,1724961040986,-500.0,0.00019178,2]
[336593228,1724961040995,-500.0,0.00019178,2]
[336593229,1724961041005,-500.0,0.00019178,2]
[336593230,1724961041015,-500.0,0.00019178,2]
[336593231,1724961041025,-500.0,0.00019178,2]
[336593232,1724961041035,-500.0,0.00019178,2]
[336593233,1724961041045,-500.0,0.00019178,2]
[336593234,1724961041054,-500.0,0.00019178,2]
[336593235,1724961041064,-500.0,0.00019178,2]
[336593236,1724961041074,-500.0,0.00019178,2]
[336593237,1724961041083,-500.0,0.00019178,2]
[336593238,1724961041092,-500.0,0.00019178,2]
[336593239,1724961041102,-500.0,0.00019178,2]
[336593240,1724961041111,-500.0,0.00019178,2]
[336593241,1724961041121,-618.21217825,0.00019178,2]
[336593242,1724961041130,-500.0,0.00019178,2]
[336593243,1724961041140,-501.13742906,0.00019178,2]
[336593244,1724961041149,-500.0,0.00019178,2]
[336593245,1724961041159,-279.81274942,0.00019178,2]
[336593246,1724961041170,-500.0,0.00019178,2]
[336593247,1724961041179,-500.0,0.00019178,2]
[336593248,1724961041189,-501.34026692,0.00019178,2]
[336593249,1724961041199,-500.0,0.00019178,2]
[336593250,1724961041208,-500.0,0.00019178,2]
[336593251,1724961041218,-500.66822901,0.00019178,2]
[336593252,1724961041228,-1221.17,0.00019178,2]
[336593253,1724961041237,-500.0,0.00019178,2]
[336593254,1724961041246,-500.0,0.00019178,2]
[336593255,1724961041256,-500.0,0.00019178,2]
[336593256,1724961041265,-500.0,0.00019178,2]
[336593257,1724961041275,-500.71122413,0.00019178,2]
[336593258,1724961041285,-500.0,0.00019178,2]
[336593259,1724961041294,-500.0,0.00019178,2]
[336593260,1724961041304,-500.0,0.00019178,2]
[336593261,1724961041313,-500.0,0.00019178,2]
[336593262,1724961041323,-500.0,0.00019178,2]
[336593263,1724961041332,-500.0,0.00019178,2]
[336593264,1724961041342,-500.0,0.00019178,2]
[336593265,1724961041351,-500.0,0.00019178,2]
[336593266,1724961041361,-500.0,0.00019178,2]
[336593267,1724961041370,-500.0,0.00019178,2]
[336593268,1724961041380,-500.0,0.00019178,2]
[336593269,1724961041389,-500.0,0.00019178,2]
[336593270,1724961041399,-500.0,0.00019178,2]
[336593271,1724961041409,-500.0,0.00019178,2]
[336593272,1724961041420,-500.0,0.00019178,2]
[336593273,1724961041430,-500.0,0.00019178,2]
[336593274,1724961041439,-500.0,0.00019178,2]
[336593275,1724961041448,-500.0,0.00019178,2]
[336593276,1724961041458,-500.0,0.00019178,2]
[336593277,1724961041467,-765.67,0.00019178,2]
[336593278,1724961041477,-500.0,0.00019178,2]
[336593279,1724961041488,-500.0,0.00019178,2]
[336593280,1724961041498,-500.0,0.00019178,2]
[336593281,1724961041507,-500.0,0.00019178,2]
[336593282,1724961041516,-500.0,0.00019178,2]
[336593283,1724961041526,-500.0,0.00019178,2]
[336593284,1724961041536,-1262.57,0.00019178,2]
[336593285,1724961041546,-500.40715464,0.00019178,2]
[336593286,1724961041556,-500.0,0.00019178,2]
[336593287,1724961041566,-1681.98,0.00019178,2]
[336593288,1724961041579,-905.43,0.00019178,2]
[336593289,1724961041589,-500.0,0.00019178,2]
[336593290,1724961041599,-500.0,0.00019178,2]
[336593291,1724961041609,-500.0,0.00019178,2]
[336593292,1724961041619,-837.99,0.00019178,2]
[336593293,1724961041628,-500.0,0.00019178,2]
[336593294,1724961041638,-500.0,0.00019178,2]
[336593295,1724961041650,-500.0,0.00019178,2]
[336593296,1724961041663,-500.0,0.00019178,2]
[336593297,1724961041675,-579.28994429,0.00019178,2]
[336593298,1724961041685,-877.29,0.00019178,2]
[336593299,1724961041694,-500.0,0.00019178,2]
[336593300,1724961041704,-500.0,0.00019178,2]
[336593301,1724961041713,-500.0,0.00019178,2]
[336593302,1724961041723,-500.0,0.00019178,2]
[336593303,1724961041735,-500.0,0.00019178,2]
[336593304,1724961041747,-500.0,0.00019178,2]
[336593305,1724961041757,-500.0,0.00019178,2]
[336593306,1724961041768,-500.0,0.00019178,2]
[336593307,1724961041778,-500.0,0.00019178,2]
[336593308,1724961041789,-500.0,0.00019178,2]
[336593309,1724961041799,-500.0,0.00019178,2]
[336593310,1724961041809,-500.0,0.00019178,2]
[336593311,1724961041819,-500.0,0.00019178,2]
[336593312,1724961041829,-730.23,0.00019178,2]
[336593313,1724961041838,-500.0,0.00019178,2]
[336593314,1724961041849,-500.0,0.00019178,2]
[336593315,1724961041858,-500.0,0.00019178,2]
[336593316,1724961041868,-500.0,0.00019178,2]
[336593317,1724961041878,-500.0,0.00019178,2]
[336593318,1724961041887,-500.0,0.00019178,2]
[336593319,1724961041897,-500.0,0.00019178,2]
[336593320,1724961041907,-500.0,0.00019178,2]
[336593321,1724961041917,-614.46030187,0.00019178,2]
[336593322,1724961041935,-500.0,0.00019178,2]
[336593323,1724961041945,-500.0,0.00019178,2]
[336593324,1724961041957,-500.0,0.00019178,2]
[336593325,1724961041967,-500.0,0.00019178,2]
[336593326,1724961041978,-500.0,0.00019178,2]
[336593327,1724961041989,-500.0,0.00019178,2]
[336593328,1724961042000,-500.0,0.00019178,2]
[336593329,1724961042013,-365.70359892,0.00019178,2]
[336593330,1724961042023,-500.0,0.00019178,2]
[336593331,1724961042033,-1026.08,0.00019178,2]
[336593332,1724961042043,-500.0,0.00019178,2]
[336593333,1724961042053,-500.0,0.00019178,2]
[336593334,1724961042063,-500.0,0.00019178,2]
[336593335,1724961042074,-500.0,0.00019178,2]
[336593336,1724961042083,-500.0,0.00019178,2]
[336593337,1724961042093,-500.0,0.00019178,2]
[336593338,1724961042105,-501.55899695,0.00019178,2]
[336593339,1724961042117,-500.0,0.00019178,2]
[336593340,1724961042128,-500.0,0.00019178,2]
[336593341,1724961042139,-500.0,0.00019178,2]
[336593342,1724961042149,-500.0,0.00019178,2]
[336593343,1724961042159,-500.0,0.00019178,2]
[336593344,1724961042171,-500.0,0.00019178,2]
[336593345,1724961042181,-500.0,0.00019178,2]
[336593346,1724961042191,-500.0,0.00019178,2]
[336593347,1724961042201,-500.0,0.00019178,2]
[336593348,1724961042212,-158.11978446,0.00019178,2]
[336593349,1724961042222,-500.0,0.00019178,2]
[336593350,1724961042231,-215.41250564,0.00019178,2]
[336593351,1724961042241,-506.13455368,0.00019178,2]
[336593352,1724961042252,-500.0,0.00019178,2]
[336593353,1724961042262,-500.0,0.00019178,2]
[336593354,1724961042272,-998.11,0.00019178,2]
[336593355,1724961042281,-500.0,0.00019178,2]
[336593356,1724961042291,-500.0,0.00019178,2]
[336593357,1724961042301,-500.0,0.00019178,2]
[336593358,1724961042311,-500.0,0.00019178,2]
[336593359,1724961042322,-502.70124044,0.00019178,2]
[336593360,1724961042332,-500.0,0.00019178,2]
[336593361,1724961042342,-500.0,0.00019178,2]
[336593362,1724961042352,-418.96532358,0.00019178,2]
[336593363,1724961042361,-500.0,0.00019178,2]
[336593364,1724961042371,-654.95,0.00019178,2]
[336593365,1724961042380,-501.67722022,0.00019178,2]
[336593366,1724961042390,-500.0,0.00019178,2]
[336593367,1724961042399,-649.12800155,0.00019178,2]
[336593368,1724961042408,-500.0,0.00019178,2]
[336593369,1724961042419,-500.0,0.00019178,2]
[336593370,1724961042429,-500.0,0.00019178,2]
[336593371,1724961042438,-500.0,0.00019178,2]
[336593372,1724961042448,-500.0,0.00019178,2]
[336593373,1724961042458,-500.0,0.00019178,2]